Cogmind - Beta 13 @@@ ROGUE MODE // 2024.04.07 @ 15:37:21 Player: jihakuz Result: Destroyed by G-47 Trooper with Particle Gun Performance ------------- Evolutions (2) 1000 Regions Visited (3) 600 Robots Destroyed (53) 265 Value Destroyed (1082) 1082 Prototype IDs (0) 0 Alien Tech Used (0) 0 Bonus (22) 22 TOTAL SCORE: 2969 Bonus ------- High Alert Combat Kills 22 Cogmind --------- Core Integrity 0/550 Matter 246/300 Energy 95/100 System Corruption 0% Temperature Critical (668) Movement Core (50) Location -8/Materials Parts ------- > --- POWER (2) -------- (None) > --- PROPULSION (3) --- (None) > --- UTILITY (3) ------ (None) > --- WEAPON (3) ------- (None) > --- INVENTORY (5) ---- Reaction Control System Peak State ------------ > --- POWER ------------ Deuterium Engine Deuterium Engine > --- PROPULSION ------- Light Treads Improved Treads Armored Treads > --- UTILITY ---------- Cooling System Light Armor Plating Hardened Light Armor Plating > --- WEAPON ----------- Beam Rifle Particle Gun Particle Cannon > --- INVENTORY -------- Deuterium Engine Deuterium Engine Aluminum Leg Reaction Control System Particle Gun [Rating: 24] Favorites ----------- Power Deuterium Engine Engine Deuterium Engine Propulsion Aluminum Leg Treads Light Treads Leg Aluminum Leg Flight Unit Flight Unit Utility Small Storage Unit Device Recoil Stabilizer Storage Small Storage Unit Protection Light Armor Plating Weapon Improved Light Cannon Energy Gun Particle Gun Energy Cannon Particle Cannon Ballistic Gun Light Assault Rifle Ballistic Cannon Improved Light Cannon Launcher Grenade Launcher Build | -11 -10 -9 -8 ------- Run | Yrd Mat Mat Mat Slots Evolved 4 | . . 2 2 Power 1 | . . 1 . Propulsion 1 | . . . 1 Utility 1 | . . . 1 Weapon 1 | . . 1 . Parts Attached 57 | 8 9 30 10 Power 10 | 1 2 5 2 Engine 10 | 1 2 5 2 Core . | . . . . Reactor . | . . . . Propulsion 10 | 2 2 4 2 Treads 5 | . . 3 2 Leg 3 | 2 . 1 . Wheel . | . . . . Hover . | . . . . Flight 2 | . 2 . . Utility 13 | 1 2 9 1 Device 2 | . . 2 . Storage 5 | 1 1 3 . Processor . | . . . . Hackware . | . . . . Protection 6 | . 1 4 1 Artifact . | . . . . Weapon 24 | 4 3 12 5 Energy Gun 9 | 3 . 3 3 Energy Cannon 3 | . . 1 2 Ballistic Gun 4 | 1 2 1 . Ballistic Cannon 5 | . 1 4 . Launcher 3 | . . 3 . Special Weapon . | . . . . Impact Weapon . | . . . . Slashing Weapon . | . . . . Piercing Weapon . | . . . . Special Melee Weapon . | . . . . Unidentified Prototypes . | . . . . Parts Lost 25 | . 3 9 13 Power 5 | . . 2 3 Propulsion 7 | . 1 3 3 Utility 4 | . . 1 3 Weapon 9 | . 2 3 4 Highest Loss Streak 13 | . 3 5 13 To Critical Strikes . | . . . . Average Slot Usage (%) 90 | . 97 87 94 Engine 16 | . 14 17 17 Treads 6 | . . 6 20 Leg 8 | . 11 8 4 Flight 5 | . 16 1 . Device 3 | . . 3 8 Storage 11 | . 16 12 . Protection 7 | . 10 4 16 Energy Gun 9 | . 10 6 18 Energy Cannon 1 | . . 1 7 Ballistic Gun 4 | . 12 2 . Ballistic Cannon 12 | . 4 18 . Launcher 1 | . . 2 . Naked Turns 7 | . . . 7 Heaviest Build 55 | 14 18 55 38 Greatest Support 63 | 20 20 40 63 Greatest Overweight (x) 12 | 2 2 12 4 Average Overweight (x) 1 | . . 1 . Largest Inventory Capacity 15 | 8 8 15 5 Average Capacity 9 | 6 8 10 5 Most Carried 8 | 7 8 7 5 Average Carried 3 | 3 6 2 3 Final Capacity 8 | 8 8 5 5 Final Carried 7 | 6 7 4 1 Class Distribution -------------------- 35% | Gunner 31% | Tank 25% | Mutant 4% | Scavenger-Tank Dominant Class ---------------- Mutant | -10/Materials Gunner | -9/Materials Tank | -8/Materials Resources | -11 -10 -9 -8 ----------- Run | Yrd Mat Mat Mat Matter Collected 1170 | 228 174 620 148 Remotely . | . . . . Salvage Created 1243 | . 285 607 351 Parts 111 | . 27 69 15 Haulers Intercepted 1 | . . 1 . Recyclers Shooed 4 | . . 4 . Parts Field Recycled . | . . . . Retrieved Matter . | . . . . Parts Self-Destructed . | . . . . Prevented . | . . . . Kills | -11 -10 -9 -8 ------- Run | Yrd Mat Mat Mat Combat Hostiles Destroyed 39 | . 10 21 8 Guns 18 | . 5 6 7 Cannons 12 | . 2 9 1 AOE 9 | . 3 6 . Classes Destroyed 8 | . 4 3 1 Worker 1 | . . . 1 Builder 4 | . 1 3 . Hauler 1 | . . 1 . Recycler 2 | . . 1 1 Watcher 6 | . 2 4 . Swarmer 21 | . 6 11 4 Grunt 14 | . 4 7 3 Sentry 4 | . . 3 1 Best Kill Streak 7 | . 4 5 7 Combat Bots Only 5 | . 3 4 5 Max Kills in Single Turn 2 | . 2 2 2 Gunslinging . | . . . . Exploded 2 | . 2 1 . Melee . | . . . . Uniques/NPCs Destroyed . | . . . . Combat | -11 -10 -9 -8 -------- Run | Yrd Mat Mat Mat Hostile Shots Fired 482 | . 83 228 171 Missed 141 | . 32 77 32 Damage Taken 4002 | . 457 1470 2075 Core 865 | . 84 217 564 Absorbed by Shields . | . . . . Redirected to Shielding 43 | . 43 . . Core Remaining (%) 70 | 100 66 45 . Volleys Fired 102 | . 32 54 16 Largest 3 | . 2 3 3 Hottest 198 | . 80 117 198 Shots Fired 228 | . 52 132 44 Gun 122 | . 45 44 33 Cannon 91 | . 7 73 11 Launcher 15 | . . 15 . Special . | . . . . Kinetic 146 | . 29 117 . Thermal 44 | . . . 44 Explosive 15 | . . 15 . Electromagnetic 23 | . 23 . . Robot Hit Streak 8 | . 5 8 5 Robot Miss Streak 6 | . 5 6 3 Penetration Max . | . . . . Secondary Targets 3 | . 1 . 2 Max Gunslinging Chain 1 | . 1 . 1 Shots Hit Robots 109 | . 25 62 22 Core Hits 82 | . 17 49 16 Critical Kills 1 | . 1 . . Critical Parts Destroyed . | . . . . Critical Strikes 4 | . 2 2 . Destroy 1 | . 1 . . Blast 3 | . 1 2 . Melee Attacks . | . . . . Impact . | . . . . Slashing . | . . . . Piercing . | . . . . Sneak Attacks . | . . . . Combat Hostiles . | . . . . Follow-up Attacks . | . . . . Damage Inflicted 2632 | . 458 1662 512 Guns 814 | . 224 205 385 Cannons 997 | . 72 803 122 Explosions 798 | . 154 644 . Melee . | . . . . Ramming 23 | . 8 10 5 Kinetic 1194 | . 186 1008 . Thermal 661 | . 154 . 507 Explosive 622 | . . 622 . Electromagnetic 132 | . 110 22 . Impact . | . . . . Slashing . | . . . . Piercing . | . . . . Highest Corruption 2 | . 2 . . Average Corruption 2 | . 2 . . Corruption Purged . | . . . . Corruption Blocked . | . . . . Effects 5 | . 5 . . Message Errors 3 | . 3 . . Data Loss (minor) 1 | . 1 . . Weapon Failures 1 | . 1 . . Overload Shots . | . . . . Overflow Damage 32 | . 15 17 . Projectiles 17 | . . 17 . Explosions 15 | . 15 . . Melee . | . . . . Knockbacks 7 | . . 7 . Impact 1 | . . 1 . Kinetic 6 | . . 6 . Secondary . | . . . . Self-Inflicted Damage 63 | . 4 59 . Shots 5 | . . 5 . Rammed 6 | . 3 2 1 Targets Rammed 8 | . 3 4 1 Kicked 2 | . . 2 . Crushed . | . . . . Highest Temperature 693 | . 90 242 693 Average Temperature 134 | . 31 84 328 Received Heat Transfer 1356 | . 30 219 1107 Effects 14 | . . 4 10 Shutdowns 2 | . . . 2 Energy Bleed 2 | . . 1 1 Interference 3 | . . 3 . Matter Decay 2 | . . . 2 Short Circuit 2 | . . . 2 Damage (minor) 2 | . . . 2 Damage (core) 1 | . . . 1 Siege Activations . | . . . . Robots Corrupted . | . . . . Combat Hostiles . | . . . . Parts Fried . | . . . . Impact Corruptions . | . . . . Robots Melted . | . . . . Combat Hostiles . | . . . . Parts Melted 1 | . 1 . . Heat Transferred 1297 | . 150 . 1147 Parts Sabotaged . | . . . . Parts Stolen . | . . . . Parts Stripped . | . . . . Power Chain Reactions 2 | . 2 . . Alert | -11 -10 -9 -8 ------- Run | Yrd Mat Mat Mat Peak Influence 536 | . 234 536 191 Initial 63 | . . 63 46 Average 197 | . 87 274 66 Maximum Alert Level 2 | . 1 2 . Low Security (%) 54 | 100 89 30 100 Level 1 36 | . 10 55 . Level 2 8 | . . 13 . Level 3 . | . . . . Level 4 . | . . . . Level 5 . | . . . . High Security . | . . . . Max Security . | . . . . Squads Dispatched 8 | . 2 1 5 Investigation . | . . . . Extermination . | . . . . Reinforcement 6 | . 2 1 3 Assault . | . . . . Garrison 2 | . . . 2 Intercept . | . . . . Searches Triggered . | . . . . Construction Impeded . | . . . . Haulers Reinforced . | . . . . Active Scanning Responses . | . . . . Cargo Convoy Interrupts . | . . . . Stealth | -11 -10 -9 -8 --------- Run | Yrd Mat Mat Mat Distress Signals 7 | . . 6 1 Communications Jammed . | . . . . Distress Signals . | . . . . Times Spotted 61 | . 17 31 13 Peak Tracking Total 7 | . 5 7 6 Tactical Retreats . | . . . . Traps | -11 -10 -9 -8 ------- Run | Yrd Mat Mat Mat Traps Triggered 1 | . 1 . . Indirectly . | . . . . Trap Hack Attempts . | . . . . Triggered . | . . . . Disarmed . | . . . . Reprogrammed . | . . . . Reused . | . . . . Traps Extracted . | . . . . Installed . | . . . . Triggered . | . . . . Machines | -11 -10 -9 -8 ---------- Run | Yrd Mat Mat Mat Machines Disabled 2 | . . 2 . Max in Single Turn 1 | . . 1 . Machines Repaired . | . . . . Machines Dismantled . | . . . . Machines Sabotaged . | . . . . Overloaded Fab Kills . | . . . . Hacking | -11 -10 -9 -8 --------- Run | Yrd Mat Mat Mat Machines Accessed . | . . . . Terminals . | . . . . Fabricators . | . . . . Repair Stations . | . . . . Recycling Units . | . . . . Scanalyzers . | . . . . Garrison Access . | . . . . Total Hacks . | . . . . Successful . | . . . . Failed . | . . . . Catastrophic . | . . . . Database Lockouts . | . . . . Manual . | . . . . Terminals . | . . . . Fabricators . | . . . . Repair Stations . | . . . . Recycling Units . | . . . . Scanalyzers . | . . . . Garrison Access . | . . . . Terminal Hacks . | . . . . Fabricator Hacks . | . . . . Repair Station Hacks . | . . . . Recycling Unit Hacks . | . . . . Scanalyzer . | . . . . Garrison Access Hacks . | . . . . Unauthorized Hacks . | . . . . Terminals . | . . . . Fabricators . | . . . . Repair Stations . | . . . . Recycling Units . | . . . . Scanalyzers . | . . . . Garrison Access . | . . . . Data Cores Recovered . | . . . . Used . | . . . . Hacking Detections . | . . . . Full Trace Events . | . . . . Feedback Events . | . . . . Feedback Blocked . | . . . . Robot Schematics Acquired . | . . . . Robots Built . | . . . . Authchips . | . . . . Time . | . . . . Total Robot Build Rating . | . . . . Part Schematics Acquired . | . . . . Parts Built . | . . . . Authchips . | . . . . Time . | . . . . Total Part Build Rating . | . . . . Parts Repaired . | . . . . Time . | . . . . Parts Recycled . | . . . . Recycled Matter . | . . . . Retrieved Matter . | . . . . Retrieved Components . | . . . . Parts Scanalyzed . | . . . . Part Schematics Acquired . | . . . . Parts Damaged . | . . . . Bothacking | -11 -10 -9 -8 ------------ Run | Yrd Mat Mat Mat Used RIF Installer . | . . . . Robots Hacked . | . . . . Non-combat . | . . . . Combat . | . . . . Robot Hacks Applied . | . . . . Relay Couplers Released . | . . . . Fabnet Peak Effective % . | . . . . Robots Rewired . | . . . . Allies Hacked . | . . . . Hacks Repelled . | . . . . Allies | -11 -10 -9 -8 -------- Run | Yrd Mat Mat Mat Total Allies . | . . . . Largest Group . | . . . . Highest-Rated Group . | . . . . Highest-Rated Ally . | . . . . Total Orders . | . . . . Ally Attacks . | . . . . Total Damage . | . . . . Kills . | . . . . Allies Corrupted . | . . . . Allies Melted . | . . . . Intel | -11 -10 -9 -8 ------- Run | Yrd Mat Mat Mat Robot Analysis Total . | . . . . Derelict Logs Recovered . | . . . . Drone Launches . | . . . . Drone Recoveries . | . . . . Exploration | -11 -10 -9 -8 ------------- Run | Yrd Mat Mat Mat Turns Passed 3287 | 74 774 2013 426 Spaces Moved 1435 | 51 515 671 198 Core 24 | 15 . 8 1 Treads 580 | . . 391 189 Legs 419 | 36 169 206 8 Wheels . | . . . . Hover . | . . . . Flight 412 | . 346 66 . Fastest Speed 50 | 50 117 117 160 Average Speed 195 | 112 118 266 177 Slowest Speed 650 | 190 200 650 330 Overloaded Moves . | . . . . Propulsion Burnouts . | . . . . Robots Hopped . | . . . . Cave-ins Triggered . | . . . . Exploration Rate (%) 32 | 4 64 46 15 Regions Visited 3 Branch Regions . Pre-discovered Areas . | . . . . Known Exits Taken . | . . . . Unknown Exits Taken 3 | 1 1 1 . Scrap Searched . | . . . . Spaces Dug . | . . . . Terrain Destroyed 84 | . 2 82 . Melee . | . . . . Projectile 3 | . . 3 . AOE 81 | . 2 79 . Terrain Rammed . | . . . . Walls Destroyed . | . . . . Machines Disabled . | . . . . Actions | -11 -10 -9 -8 --------- Run | Yrd Mat Mat Mat Total 1737 | 66 628 803 240 Wait 66 | . 59 . 7 Move 1432 | 50 514 670 198 Hop . | . . . . Pick Up 17 | 6 3 7 1 Fast Attach 35 | 6 6 21 2 Attach 16 | 2 1 5 8 Detach 24 | 2 3 14 5 Swap 6 | . 2 4 . Drop 31 | . 5 24 2 Fire 102 | . 32 54 16 Melee . | . . . . Ram 4 | . 3 1 . Kick 2 | . . 2 . Crush 2 | . . 1 1 Escape Stasis . | . . . . Rewire . | . . . . Trap . | . . . . Miscellaneous . | . . . . Route ------- -11/Scrapyard -10/Materials (discovered 2 exits: [*Mat] / [*Min]) -9/Materials (discovered 2 exits: [*Mat] / [*Min]) -8/Materials History --------- Turn | Location | Event 34 | -11/Scrapyard | Discovered new exit (range 16) 75 | -11/Scrapyard | Entered Materials 301 | -10/Materials | Build established: Mutant 422 | -10/Materials | Lost 3 parts (1n2w) 522 | -10/Materials | Discovered new exit (range 11) 591 | -10/Materials | Discovered new exit (range 7) 849 | -10/Materials | Entered another Materials area 849 | -9/Materials | Evolved 2 slots: Power x1, Weapon x1 1358 | -9/Materials | Build established: Gunner 1359 | -9/Materials | Lost 5 parts (1p2n2w) 1498 | -9/Materials | Discovered new exit (range 9) 2199 | -9/Materials | Core integrity fell below 50% 2520 | -9/Materials | Build established: Tank 2790 | -9/Materials | Discovered new exit (range 16) 2862 | -9/Materials | Entered another Materials area 2862 | -8/Materials | Evolved 2 slots: Propulsion x1, Utility x1 3274 | -8/Materials | Core integrity fell below 50% 3285 | -8/Materials | Core integrity fell below 20% 3288 | -8/Materials | Destroyed by G-47 Trooper with Particle Gun Last Messages --------------- Overheating: Deuterium Engine damaged (-10). Power failure, Deuterium Engine shutdown. Imp. Treads destroyed. Overheating: Core damaged (-104). Hrd. Light Armor Plating destroyed. Critical hit (Burn: +37). Particle Gun destroyed. Cooling System destroyed. Beam Rifle destroyed. Particle Gun destroyed. Critical hit (Burn: +37). Overheating: Deuterium Engine damaged (-4). Deuterium Engine destroyed. Critical hit (Burn: +37). Broken Arm. Treads destroyed. Critical hit (Burn: +37). Overheating: Matter decay (-39). Y-45 Defender destroyed. Particle Cannon destroyed. Critical hit (Burn: +37). Map ----- +----------------------------------------------------+ | ?????????????????????????????????????????????????? | | ?????????????????????????????????????????????????? | | ?????????????????????????????????????????????????? | | ?????????????????????????????????????????????????? | | ?????????????????????????????????????????????????? | | ?????????????????????????????????????????????????? | | ??????????????????????????????###????????????????? | | ????????????????????????????? ????????????????? | | ?????????????????????????????? #???????????????? | | ?????????????????????????????" #???????????????? | | ??????????????????????? ??""" #???????????????? | | ??????????????????????# """"" #???????????????? | | ??????????????????????# """"" #???????????????? | | ??????????????????????# """ #???????????????? | | ???????????????????? ?# ######+###??????? | | ???????????????????? # #??????? | | ????????????????????? + """ +??????? | | ??????????????????????# """"" #??????? | | ??????????????????????# """"" #??????? | | ??????????????????????#! """" #??????? | | ??????????????????????# """ #??????? | | ??????????????????????# #??????? | | ??????????????????????# ######## #??##### | | ??????????????????????# """ ######## #??# | | ??????????????????????# """"" #! # #??# ! | | ??????????????????????# !@ """" %# """# #### | | ??????????????????????# |%! """ # """# + | | ??????????????????????# = "" # = """#### # | | ??????????????????????# * # #??# # | | ??????????????????????# # [ #??# # ! | | ??????????????????????#gg!gg ##+######?# # | | ??????????????????????# !%* #?# ##### | | ??????????????????????#==%Y! ### ###?? | | ??????????????????????# %"=" # #?? | | ??????????????????????# !"G" #?? | | ??????????????????????# """ #?? | | ??????????????????????# #?? | | ??????????????????????# # #?? | | ??????????????????????########### ###+####? | | ????????????????????????????????# # #? | | ????????????????????????????????# # """ #? | | ????????????????????????????????# # """ #? | | ???????????????????????########## # """ #? | | ???????????????????????# # # #? | | ???????????????????????# """# # #? | | ???????????????????????# """# ########? | | ???????????????????????# """# ######???????? | | ???????????????????????# + #????????????? | | ???????????????????????# """# #????????????? | | ???????????????????????# """#####????????????? | +----------------------------------------------------+ Best States ------------- Heat Dissipation 53 Energy Generation 23 Energy Capacity 500 Matter Stores 300 Matter Capacity 450 Sight Range 16 Terrain Scan Density 10 Armor Coverage 300 Propulsion Shielding 33 Evasion (%) 55 Recoil Reduction 5 Item Schematics ----------------- None Robot Schematics ------------------ None Fabricated ------------ Nothing Alien Tech Used ----------------- None Achievements -------------- Loot Pinata Challenges ------------ None Game ------ Seed MassBurstSabre Manual? 0 Play Time 00:23:12 Cumulative 2.8 hours Start 2024.04.07 @ 15:06:46 End 2024.04.07 @ 15:37:21 Sessions 1 Manual Loads 0 Difficulty Rogue Special Mode None Game No. 6 Rogue 6 Adventurer 0 Explorer 0 Win Type - Total 0 Types 0/0/0/0/0/0/0/0/0 Lore% 0 Gallery% 9 Achievement% 7 Wizard Run 0 Options --------- Layout 1 ASCII 1 Keyboard 1 Movement Vi Keybinds 0 Fullscreen 1 Font 24/Proggy Map View 50x35 Zoom Use 0% Tactical HUD 0 Map Filters NONE Filters NONE Steam 0 RUN: 0834271f-c6bf-4a96-bb92-ba7e71d8a86f